bitfinex/quotes_ETHUSD_20240917
["timestamp","ask_amount","ask_price","bid_price","bid_amount"]
[1726579172991,4.29879,2326.3,2325.9,4.29928]
[1726579173813,8.59711,2326.4,2326.0,4.2992]
[1726579174002,4.29851,2326.4,2326.1,0.42992]
[1726579174867,8.59708,2326.4,2326.1,0.42992]
[1726579175216,8.59709,2326.4,2326.1,0.42992]
[1726579176312,4.29851,2326.4,2326.1,0.42992]
[1726579177130,8.59708,2326.4,2326.1,0.42992]
[1726579177518,4.29871,2326.3,2326.1,0.42992]
[1726579177744,4.29871,2326.3,2325.9,4.29938]
[1726579179542,4.29871,2326.3,2325.8,4.29956]
[1726579179728,4.29871,2326.3,2325.9,4.38536041]
[1726579179933,4.29871,2326.3,2325.9,4.29939]
[1726579180245,2.4315,2326.2,2325.9,4.38536292]
[1726579180574,4.29894,2326.2,2325.9,0.86849229]
[1726579180916,0.0389575,2326.5,2325.5,4.30007]
[1726579180917,4.29949,2325.9,2325.5,4.30007]
[1726579181159,6.73057,2326.1,2325.6,0.0859885]
[1726579181458,6.73057,2326.1,2325.6,4.3858185]
[1726579181459,4.29926,2326.0,2325.6,4.3858185]
[1726579181960,4.29926,2326.0,2325.4,7.42]
[1726579181961,4.2996,2325.8,2325.4,11.72025]
[1726579182186,4.2996,2325.8,2325.4,6.342317]
[1726579182389,4.29945,2325.9,2325.5,4.30013]
[1726579182540,4.29945,2325.9,2325.6,0.08598642]
[1726579183253,4.29962,2325.8,2325.4,6.342297]
[1726579183583,4.29962,2325.8,2325.3,4.4]
[1726579183584,4.29979,2325.7,2325.3,4.4]
[1726579183784,4.29979,2325.7,2325.3,4.0]
[1726579183785,4.30023,2325.5,2325.3,4.0]
[1726579184084,4.3,2325.6,2325.3,4.0]
[1726579184757,4.29999,2325.6,2325.3,4.0]
[1726579184959,8.60004,2325.6,2325.3,4.0]
[1726579185745,4.29999,2325.6,2325.3,4.0]
[1726579185944,4.29999,2325.6,2325.3,4.92467306]
[1726579186177,4.2998,2325.7,2325.3,9.22508306]
[1726579186352,4.29949,2325.9,2325.4,4.30022]
[1726579186548,6.72845,2326.1,2325.6,4.29988]
[1726579186862,4.29878,2326.3,2325.8,4.29948]
[1726579187207,6.7278,2326.4,2325.9,0.08597307]
[1726579187354,4.2985,2326.4,2326.0,4.29921]
[1726579187556,4.2985,2326.4,2326.1,0.08597185]
[1726579188409,4.2985,2326.4,2326.0,5.25364669]
[1726579190200,4.29869,2326.3,2326.0,0.08597038]
[1726579190361,4.29869,2326.3,2325.9,4.38536045]
[1726579190757,6.65489,2326.3,2325.9,4.29939]
[1726579191181,4.29893,2326.2,2325.8,4.29958]
[1726579192407,4.29893,2326.2,2325.7,0.86859183]
[1726579192408,4.29893,2326.2,2325.7,5.16834183]
[1726579192716,4.29893,2326.2,2325.7,4.29975]
[1726579193065,4.29893,2326.2,2325.8,4.29958]
[1726579193751,4.29893,2326.2,2325.7,8.59944]
[1726579193957,4.29893,2326.2,2325.7,4.29969]
[1726579194112,4.29893,2326.2,2325.8,4.29958]
[1726579194455,4.29893,2326.2,2325.8,5.159507]
[1726579194954,4.29893,2326.2,2325.8,4.29958]
[1726579196656,4.29893,2326.2,2325.8,8.59903]
[1726579197004,4.29909,2326.1,2325.7,4.29969]
[1726579197774,4.29909,2326.1,2325.7,8.59931]
[1726579198066,4.29909,2326.1,2325.8,5.159521]
[1726579198368,2.3471575,2326.5,2325.9,4.29933]
[1726579198567,4.29865,2326.4,2326.0,4.3851116]
[1726579200273,4.2986,2326.4,2326.0,4.3851116]
[1726579200443,4.2986,2326.4,2326.0,5.33954886]
[1726579200778,6.6454875,2326.5,2326.1,4.29902]
[1726579201133,4.29849,2326.4,2326.0,5.25357726]
[1726579201340,6.6454775,2326.5,2326.1,4.29895]
[1726579201865,6.6454775,2326.5,2326.1,4.38492157]
[1726579202085,2.3471575,2326.5,2326.2,9.56137988]
[1726579202229,0.0389575,2326.5,2326.2,0.96384988]
[1726579202436,0.0389575,2326.5,2326.4,4.29848]
[1726579203570,0.0389575,2326.5,2326.3,4.3845903]
[1726579203727,0.0389575,2326.5,2326.2,4.29873]
[1726579203728,0.0389575,2326.5,2326.2,4.29872]
[1726579203931,2.4592575,2326.5,2326.2,4.29872]
[1726579204129,2.4592575,2326.5,2326.2,8.59749]
[1726579204368,2.4592575,2326.5,2326.2,9.457239]
[1726579205028,6.7576775,2326.5,2326.0,4.29907]
[1726579205377,4.29856,2326.4,2326.0,4.29907]
[1726579205871,4.29856,2326.4,2325.9,4.29938]
[1726579205872,4.29875,2326.3,2325.9,4.29938]
[1726579206362,4.29875,2326.3,2325.9,8.59872]
[1726579206531,4.29849,2326.4,2326.0,4.29922]
[1726579207443,4.29877,2326.3,2325.9,5.2452051]
[1726579207632,4.29877,2326.3,2325.9,4.29934]
[1726579208279,4.29877,2326.3,2325.9,4.2993]
[1726579208501,4.29877,2326.3,2325.9,8.5986]
[1726579208776,4.29877,2326.3,2325.9,4.2993]
[1726579208937,4.29877,2326.3,2325.9,4.29929]
[1726579209133,4.29877,2326.3,2326.0,0.859888]
[1726579209334,4.29877,2326.3,2325.9,4.29929]
[1726579209869,4.29853,2326.4,2326.0,4.29908]
[1726579210937,0.0389575,2326.5,2325.8,4.29946]
[1726579211133,0.0389575,2326.5,2326.4,4.29848]
[1726579212032,0.0389575,2326.5,2326.4,8.68291633]
[1726579212268,0.0389575,2326.5,2326.4,9.55120796]
[1726579213290,0.0389575,2326.5,2326.4,9.46525163]
[1726579213476,0.0389575,2326.5,2326.4,5.16677163]
[1726579213681,0.0389575,2326.5,2326.3,4.29864]
[1726579213996,0.0389575,2326.5,2326.4,4.29848]
[1726579214399,0.0389575,2326.5,2326.3,4.29854]
[1726579215509,6.8252375,2326.5,2326.1,4.29886]
[1726579215714,4.29856,2326.4,2326.0,4.29919]
[1726579215905,4.2987,2326.3,2325.9,4.2993]
[1726579216125,2.4526,2326.2,2325.8,4.29955]
[1726579216276,2.4526,2326.2,2325.8,5.24952419]
[1726579216587,6.75147,2326.2,2325.8,0.94997419]
[1726579216784,6.75147,2326.2,2325.8,4.2995]
[1726579217004,2.56007576,2326.2,2325.5,4.30004]
[1726579217213,6.63558,2325.9,2325.5,4.30004]
[1726579217428,4.29964,2325.8,2325.4,4.30031]
[1726579217715,4.30007,2325.6,2325.3,4.0]
[1726579218224,2.3361,2325.5,2325.3,4.0]
[1726579218584,2.3361,2325.5,2325.3,8.30048]
[1726579218784,6.7942,2325.7,2325.3,8.30048]
[1726579219083,6.7942,2325.7,2325.3,9.560595]
[1726579219588,6.7942,2325.7,2325.3,5.260115]
[1726579221041,2.4944,2325.7,2325.4,4.30032]
[1726579221243,4.29959,2325.8,2325.4,4.30032]
[1726579221244,6.66364,2326.0,2325.5,4.30012]
[1726579221937,10.96297,2326.0,2325.5,4.30012]
[1726579222337,6.66363,2326.0,2325.6,4.29991]
[1726579222525,6.66363,2326.0,2325.6,0.08598968]
[1726579222694,6.66363,2326.0,2325.6,4.38582968]
[1726579222695,2.3643,2326.0,2325.6,4.38582968]
[1726579222895,2.3643,2326.0,2325.7,4.29966]
[1726579223097,14.13411,2326.3,2325.9,4.29939]
[1726579223410,4.3373675,2326.5,2326.1,4.29904]
[1726579223628,4.3373675,2326.5,2326.0,4.29915]
[1726579223839,4.3373675,2326.5,2325.9,4.73792751]
[1726579223840,0.0389575,2326.5,2326.1,4.3848504]
[1726579224146,0.0389575,2326.5,2326.2,4.29883]
[1726579224663,0.0389575,2326.5,2326.1,4.29888]
[1726579224664,0.0389575,2326.5,2326.1,8.59782]
[1726579224846,0.0389575,2326.5,2326.2,0.859782]
[1726579225211,0.0389575,2326.5,2326.1,4.29888]
[1726579225411,0.0389575,2326.5,2326.1,8.59784]
[1726579225866,0.0389575,2326.5,2326.3,4.29852]
[1726579226449,0.0389575,2326.5,2326.4,4.29848]
[1726579226647,0.0389575,2326.5,2326.4,8.68292583]
[1726579226846,0.0389575,2326.5,2326.4,9.55121841]
[1726579228423,0.0389575,2326.5,2326.4,13.84969841]
[1726579230164,0.0389575,2326.5,2326.4,9.55121841]
[1726579230718,0.0389575,2326.5,2326.4,13.84969841]
[1726579231171,0.0389575,2326.5,2326.4,9.55121841]
[1726579231370,0.0389575,2326.5,2326.4,13.84969841]
[1726579231598,0.0389575,2326.5,2326.4,9.55121841]
[1726579231765,0.0389575,2326.5,2326.4,13.84969841]
[1726579231959,0.0389575,2326.5,2326.4,9.55121841]
[1726579233761,0.0389575,2326.5,2326.4,13.84969841]
[1726579234573,0.0389575,2326.5,2326.4,9.46525258]
[1726579236968,0.0389575,2326.5,2326.4,13.76373258]
[1726579237165,0.0389575,2326.5,2326.4,9.46525258]
[1726579237575,0.0389575,2326.5,2326.4,13.76373258]
[1726579238208,0.0389575,2326.5,2326.4,17.10288159]
[1726579238362,2.448,2327.1,2326.4,17.10288159]
[1726579238363,2.448,2327.1,2326.9,4.2974]
[1726579240207,2.448,2327.1,2326.7,4.2979]
[1726579240419,6.7452,2327.1,2326.7,4.2979]
[1726579240706,2.448,2327.1,2326.7,4.2979]
[1726579240871,6.74521,2327.1,2326.7,4.2979]
[1726579241066,2.448,2327.1,2326.7,4.2979]
[1726579241315,2.448,2327.1,2326.5,1.71028816]
[1726579241316,2.448,2327.1,2326.8,4.29763]
[1726579241466,2.448,2327.1,2326.8,8.5953]
[1726579241673,2.448,2327.1,2326.9,4.29753]
[1726579241875,2.448,2327.1,2326.8,4.29763]
[1726579243089,2.448,2327.1,2326.8,4.29762]
[1726579243618,2.448,2327.1,2326.7,4.2979]
[1726579243821,2.448,2327.1,2326.8,4.29771]
[1726579244837,2.362,2327.0,2326.6,4.29803]
[1726579244977,2.362,2327.0,2326.2,4.73053]
[1726579244978,2.362,2327.0,2326.7,4.29792]
[1726579245177,2.362,2327.0,2326.6,4.29802]
[1726579245519,2.46944208,2327.0,2326.6,4.29802]
[1726579245903,2.362,2327.0,2326.8,4.29773]
[1726579247324,2.362,2327.0,2326.8,4.2977]
[1726579248823,2.362,2327.0,2326.8,8.59534]
[1726579248978,2.362,2327.0,2326.8,8.59531]
[1726579249179,2.362,2327.0,2326.8,4.29764]
[1726579251462,2.362,2327.0,2326.8,8.59532]
[1726579251757,2.362,2327.0,2326.8,4.29764]
[1726579252132,2.362,2327.0,2326.8,8.59523]
[1726579252539,2.362,2327.0,2326.9,4.29756]
[1726579252739,2.4396575,2327.2,2327.0,4.29737]
[1726579253456,2.4396575,2327.2,2327.0,6.2973]
[1726579258331,2.4396575,2327.2,2327.0,2.0]
[1726579258732,0.10742903,2327.1,2327.0,2.0]
[1726579258930,6.77911903,2327.1,2327.0,2.0]
[1726579259134,2.3745,2327.1,2327.0,2.0]
[1726579260783,6.67169,2327.1,2327.0,2.0]
[1726579261113,2.48193658,2327.1,2327.0,2.0]
[1726579261431,2.3745,2327.1,2327.0,2.0]
[1726579262879,0.0389575,2327.2,2327.0,2.0]
[1726579265004,11.08048,2327.1,2327.0,2.0]
[1726579265301,14.63048,2327.1,2327.0,2.0]
[1726579265857,14.63048,2327.1,2326.1,4.29887]
[1726579265858,2.3653,2326.5,2326.1,4.29887]
[1726579266063,2.47276709,2326.5,2326.1,4.29887]
[1726579266378,2.47276709,2326.5,2326.0,4.2992]
[1726579266379,2.3653,2326.3,2326.0,4.2992]
[1726579266862,2.3653,2326.3,2326.1,4.29886]
[1726579267205,2.2748,2326.5,2326.3,4.29856]
[1726579267505,2.2748,2326.5,2326.1,0.859795]
[1726579267506,2.2748,2326.7,2326.4,4.29848]
[1726579267704,2.2748,2326.7,2326.4,8.59676]
[1726579268008,2.2748,2326.7,2326.4,4.29837]
[1726579268500,2.2748,2326.7,2326.5,4.29816]
[1726579268716,2.2748,2326.7,2326.4,4.29837]
[1726579268920,2.80228,2326.7,2326.3,4.29866]
[1726579269197,7.10029,2326.7,2326.2,4.29874]
[1726579269398,7.10029,2326.7,2326.2,8.59751]
[1726579269562,7.10029,2326.7,2326.2,4.29874]
[1726579269766,7.10029,2326.7,2326.3,4.29864]
[1726579270085,1.4737189,2326.6,2326.3,4.29864]
[1726579270306,2.80228,2326.7,2326.3,4.29864]
[1726579271964,2.80228,2326.7,2326.4,4.29847]
[1726579272984,2.2748,2326.7,2326.5,4.29822]
[1726579273389,2.2748,2326.7,2326.4,4.29836]
[1726579274594,2.2748,2326.7,2326.5,4.29817]
[1726579274776,2.2748,2326.7,2326.5,8.59635]
[1726579275096,2.2748,2326.7,2326.5,4.29817]
[1726579275422,2.2748,2326.7,2326.4,4.29848]
[1726579275423,3.232048,2326.7,2326.4,4.29848]
[1726579275724,3.232048,2326.7,2326.3,4.29852]
[1726579275725,7.63754866,2326.7,2326.3,4.29852]
[1726579276709,3.33950866,2326.7,2326.3,8.59711]
[1726579276909,3.232048,2326.7,2326.4,4.29836]
[1726579277113,2.2748,2326.7,2326.5,4.29817]
[1726579277621,2.2748,2326.7,2326.5,8.59639]
[1726579277807,2.2748,2326.7,2326.6,4.29811]
[1726579278011,2.2748,2326.7,2326.5,4.29816]
[1726579278230,2.2748,2326.7,2326.6,4.29811]
[1726579278385,3.0,2327.0,2326.7,4.2979]
[1726579278386,2.3705,2326.9,2326.7,4.2979]
[1726579278796,2.3705,2326.9,2326.6,4.29804]
[1726579278997,2.3705,2326.9,2326.7,4.29784]
[1726579279331,2.2834,2327.1,2326.9,4.29756]
[1726579279484,2.2834,2327.1,2326.6,0.51576145]
[1726579279485,2.2834,2327.1,2327.0,4.29737]
[1726579280490,0.0389575,2327.2,2327.1,4.29719]
[1726579280718,0.0389575,2327.2,2327.1,9.03269386]
[1726579283387,0.0389575,2327.2,2327.1,13.32988386]
[1726579284023,0.0389575,2327.2,2327.1,18.81207643]
[1726579284337,2.3712575,2327.9,2327.8,4.2959]
[1726579284537,2.3712575,2327.9,2327.8,5.155098]
[1726579284696,2.3712575,2327.9,2327.8,4.2959]
[1726579285633,0.0389575,2327.9,2327.8,4.2959]
[1726579286629,0.0389575,2327.9,2327.8,8.5918]
[1726579286796,0.0389575,2327.9,2327.8,4.2959]
[1726579287333,0.0389575,2327.9,2327.8,8.5918]
[1726579287788,0.0389575,2327.9,2327.8,4.2959]
[1726579287920,0.0389575,2327.9,2327.8,8.5918]
[1726579288121,0.0389575,2327.9,2327.8,4.2959]
[1726579288620,0.0389575,2327.9,2327.8,9.880611]
[1726579290218,0.0389575,2327.9,2327.8,14.176511]
[1726579290459,0.0389575,2327.9,2327.8,9.880611]
[1726579290821,0.0389575,2327.9,2327.8,14.176511]
[1726579291219,0.0389575,2327.9,2327.8,9.880611]
[1726579292724,0.0389575,2327.9,2327.8,14.176511]
[1726579293131,0.0389575,2327.9,2327.8,17.176511]
[1726579294127,0.0389575,2327.9,2327.8,21.472411]
[1726579294425,0.0389575,2327.9,2327.8,21.904211]
[1726579295278,0.0389575,2327.9,2327.8,17.608311]
[1726579295480,0.0389575,2327.9,2327.8,21.904211]
[1726579295971,0.0389575,2327.9,2327.8,17.608311]
[1726579296182,0.0389575,2328.6,2328.4,4.29474]
[1726579296183,2.3663,2328.5,2328.4,4.29474]
[1726579296371,2.3663,2328.5,2328.3,4.29496]
[1726579296558,2.3663,2328.5,2328.1,4.29518]
[1726579296741,2.3663,2328.5,2328.3,4.29491]
[1726579297142,2.3663,2328.5,2328.1,0.429518]
[1726579297143,2.3663,2328.5,2328.2,4.29512]
[1726579298178,2.3663,2328.5,2328.2,4.29507]
[1726579298720,2.2667,2328.4,2328.1,4.29529]
[1726579298874,6.56151,2328.4,2328.0,4.29545]
[1726579299250,2.2667,2328.4,2328.1,4.29533]
[1726579299445,2.2667,2328.4,2328.2,4.3809857]
[1726579299684,2.2667,2328.4,2328.1,0.859078]
[1726579299685,2.3056575,2328.6,2328.4,4.29468]
[1726579300004,2.3056575,2328.6,2328.1,0.94497263]
[1726579300005,0.0389575,2328.6,2328.5,8.58922]
[1726579301476,3.37810651,2329.3,2329.2,4.29331]
[1726579301477,0.0389575,2329.3,2329.2,4.29331]
[1726579301676,0.0389575,2329.3,2329.2,8.58662]
[1726579303190,0.0389575,2329.3,2329.2,4.29331]
[1726579304769,0.0389575,2329.3,2329.1,4.29333]
[1726579305171,0.0389575,2329.3,2328.9,8.58749]
[1726579305172,2.2886,2329.2,2328.9,8.58749]
[1726579305395,2.2886,2329.2,2328.7,4.29409]
[1726579305597,7.04311352,2329.2,2328.7,4.29409]
[1726579305798,7.15045754,2329.2,2328.7,4.29409]
[1726579306111,7.15045754,2329.2,2328.5,4.29446]
[1726579306112,6.19626654,2329.2,2328.5,4.29446]
[1726579306335,7.15051753,2329.2,2328.2,15.05427901]
[1726579306493,4.29352,2329.1,2328.6,4.29433]
[1726579307199,4.29353,2329.1,2328.6,4.29433]
[1726579307389,4.79625408,2329.1,2328.6,4.29433]
[1726579307735,2.2817,2328.9,2328.6,4.29433]
[1726579309989,2.3166,2329.1,2328.6,4.2943]
[1726579310196,2.3166,2329.1,2328.7,4.29415]
[1726579311136,4.29369,2329.0,2328.5,4.29443]
[1726579312104,4.29369,2329.0,2328.6,4.29441]
[1726579312648,6.61014,2329.1,2328.7,4.2942]
[1726579312931,2.3166,2329.1,2328.7,0.858861]
[1726579313137,0.0389575,2329.3,2329.2,8.58662]
[1726579314033,0.0389575,2329.3,2329.2,8.67247137]
[1726579315591,0.0389575,2329.3,2329.2,4.37916137]
[1726579315796,0.0389575,2329.3,2329.2,4.29331]
[1726579316039,0.0389575,2329.3,2329.2,9.44529]
[1726579316261,2.361,2329.7,2329.2,9.44529]
[1726579316262,2.361,2329.7,2329.4,4.29293]
[1726579316539,2.361,2329.7,2329.3,4.29312]
[1726579316752,2.361,2329.7,2328.8,3.77094901]
[1726579316753,2.361,2329.7,2329.5,4.29272]
[1726579317096,2.361,2329.7,2329.4,4.29279]
[1726579318093,2.361,2329.7,2329.4,5.151387]
[1726579318325,2.361,2329.7,2329.5,4.2927]
[1726579318595,2.361,2329.7,2329.4,5.151517]
[1726579319034,2.361,2329.7,2329.3,4.29311]
[1726579319231,2.361,2329.7,2329.4,4.29278]
[1726579320036,2.361,2329.7,2328.9,3.0]
[1726579320339,2.2582,2329.4,2328.8,4.29391]
[1726579320548,2.3,2329.1,2328.6,4.29441]
[1726579320753,4.29369,2329.0,2328.6,4.29441]
[1726579320901,2.40735113,2329.1,2328.7,4.29418]
[1726579320902,6.59352,2329.1,2328.7,4.29418]
[1726579321240,2.3,2329.1,2328.8,4.294]
[1726579321458,2.3,2329.1,2328.8,8.58793]
[1726579321594,2.3,2329.1,2328.8,4.29393]
[1726579321798,2.3,2329.1,2328.8,4.29391]
[1726579322001,0.10733907,2329.5,2329.0,8.58727]
[1726579322002,2.4414,2329.4,2329.0,8.58727]
[1726579322244,2.4414,2329.4,2328.8,0.429391]
[1726579322245,2.4414,2329.4,2328.9,4.37956855]
[1726579322399,2.4414,2329.4,2329.1,4.2934]
[1726579322946,2.4414,2329.4,2329.1,8.58681]
[1726579323129,2.4414,2329.4,2329.1,4.2934]
[1726579324560,2.4414,2329.4,2328.8,0.429391]
[1726579324561,4.29333,2329.2,2328.8,4.29396]
[1726579324842,4.29354,2329.1,2328.7,4.29414]
[1726579325045,6.57159,2329.0,2328.6,4.29437]
[1726579325574,2.2779,2329.0,2328.7,4.29421]
[1726579326073,2.2779,2329.0,2328.7,4.29414]
[1726579326236,2.2779,2329.0,2328.7,8.5883]
[1726579326431,2.4,2329.3,2329.0,4.29353]
[1726579326633,2.4,2329.3,2329.0,4.29365]
[1726579327334,4.29242,2329.7,2329.1,4.37926319]
[1726579327534,2.4242,2329.6,2329.0,4.73160263]
[1726579327834,2.4242,2329.6,2329.1,4.29347]
[1726579328055,2.4242,2329.6,2329.2,4.29316]
[1726579328261,2.4242,2329.6,2329.3,4.8168737]
[1726579328465,6.71623,2329.9,2329.3,4.8168737]
[1726579329255,2.4242,2329.9,2329.3,4.8168137]
[1726579329435,2.4242,2329.9,2329.3,0.5237537]
[1726579329779,6.71634,2329.9,2329.3,4.73101131]
[1726579330079,4.64595875,2329.8,2329.1,3.0]
[1726579330248,4.39971496,2329.7,2329.1,7.29336]
[1726579330947,2.3625,2329.6,2329.1,3.0]
[1726579331151,2.3625,2329.6,2329.0,0.43795263]
[1726579331402,2.3625,2329.6,2328.8,0.90057194]
[1726579331403,4.40018271,2329.5,2328.8,4.29397]
[1726579331587,3.33914901,2329.7,2328.9,0.08586459]
[1726579331588,2.3204,2329.4,2328.9,0.08586459]
[1726579332076,2.3204,2329.4,2328.9,4.37971459]
[1726579332290,2.3204,2329.4,2328.9,5.16121546]
[1726579332438,2.3204,2329.4,2328.9,4.29386]
[1726579332652,2.3204,2329.4,2328.9,4.3797246]
[1726579333366,2.3204,2329.4,2328.8,4.3798846]
[1726579333572,2.3204,2329.4,2328.9,4.29384]
[1726579333897,6.61336,2329.4,2328.8,4.29405]
[1726579334061,6.61336,2329.4,2328.9,0.429405]
[1726579334400,2.3204,2329.4,2328.9,4.80902962]
[1726579334701,2.3204,2329.4,2329.0,4.29365]
[1726579335001,2.3204,2329.4,2328.9,4.80911962]
[1726579335206,2.3204,2329.4,2328.9,0.51526962]
[1726579335498,7.63089901,2330.1,2328.9,0.51526962]
[1726579335499,2.4485,2329.6,2329.1,4.29349]
[1726579337061,2.4485,2329.6,2329.0,4.67896186]
[1726579337296,6.74119,2329.6,2329.0,8.97256186]
[1726579337502,2.4485,2329.6,2329.1,4.29349]
[1726579337709,2.4485,2329.6,2329.1,0.94018569]
[1726579337710,6.74113,2329.6,2329.1,0.94018569]
[1726579337917,2.4485,2329.6,2329.1,5.23359569]
[1726579338216,2.3235,2329.4,2328.9,3.429405]
[1726579338591,6.61654,2329.4,2328.9,3.429405]
[1726579338786,4.29317,2329.3,2328.9,0.429405]
[1726579339005,6.61646,2329.4,2328.8,7.29403]
[1726579339379,6.61646,2329.4,2328.8,4.29403]
[1726579340393,4.29314,2329.3,2328.7,4.29416]
[1726579341187,2.3235,2329.4,2328.8,4.37985173]
[1726579341381,6.61646,2329.4,2328.9,0.43798517]
[1726579341724,2.3235,2329.4,2328.9,4.81765313]
[1726579341886,2.3235,2329.4,2328.9,4.73178517]
[1726579342327,2.3235,2329.4,2328.9,0.52385193]
[1726579342531,2.3235,2329.4,2328.9,4.81768193]
[1726579342681,2.3235,2329.4,2329.0,0.48176819]
[1726579343582,2.3235,2329.4,2329.0,4.77538819]
[1726579345385,2.3235,2329.4,2329.0,0.48176819]
[1726579345898,2.3235,2329.4,2328.9,4.73181517]
[1726579346076,2.3235,2329.4,2328.9,9.02561517]
[1726579346281,2.3235,2329.4,2328.9,9.02555517]
[1726579346580,2.3235,2329.4,2328.9,4.73175517]
[1726579347689,2.3235,2329.4,2328.9,0.43798517]
[1726579347690,6.61658,2329.4,2328.9,0.43798517]
[1726579348626,2.3235,2329.4,2328.9,4.73183517]
[1726579348782,2.3235,2329.4,2329.0,0.90257952]
[1726579349420,2.3235,2329.4,2329.0,5.19616952]
[1726579349628,2.3235,2329.4,2329.0,5.19611952]
[1726579349832,6.56798,2329.6,2329.0,5.19611952]
[1726579350002,6.56798,2329.6,2329.1,0.52819802]
[1726579350817,2.2754,2329.6,2329.1,4.82160802]
[1726579351017,4.2924,2329.7,2329.1,4.82160802]
[1726579351018,9.8812,2329.8,2329.6,4.29249]
[1726579351237,2.4301575,2330.0,2329.6,4.29243]
[1726579351400,2.4301575,2330.0,2329.6,5.06424225]
[1726579351594,2.4301575,2330.0,2329.6,5.15008483]
[1726579352136,2.4301575,2330.0,2329.6,0.77174225]
[1726579352335,2.4301575,2330.0,2329.5,4.37860257]
[1726579352814,6.7221575,2330.0,2329.3,0.08584258]
[1726579353137,2.5306085,2329.9,2329.2,8.58651]
[1726579353338,2.4394,2329.7,2329.2,8.58647]
[1726579353641,2.4394,2329.7,2329.1,4.82165802]
[1726579353811,2.4394,2329.7,2329.2,4.29329]
[1726579354509,6.73189,2329.7,2329.1,4.82161802]
[1726579354710,2.4246,2329.5,2329.0,5.19624952]
[1726579355314,6.7174,2329.5,2329.0,5.19624952]
[1726579355517,2.4246,2329.5,2329.0,5.19624952]
[1726579356045,2.4246,2329.5,2329.1,4.29342]
[1726579356341,2.4246,2329.5,2329.1,5.34102021]
[1726579356544,2.4246,2329.5,2329.1,1.04760021]
[1726579356740,2.4246,2329.5,2329.1,5.34106021]
[1726579357297,4.39964587,2329.8,2329.1,5.34106021]
[1726579357505,4.39964587,2329.8,2329.1,4.29346]
[1726579357750,4.29244,2329.7,2329.1,4.29338]
[1726579357905,4.29244,2329.7,2329.1,4.37924069]
[1726579358102,4.29224,2329.8,2329.2,4.29322]
[1726579358615,4.29224,2329.8,2329.2,4.29316]
[1726579358987,4.29203,2329.9,2329.3,4.81681638]
[1726579359142,4.29225,2329.8,2329.3,4.73096207]
[1726579359731,4.29206,2329.9,2329.3,9.02399207]
[1726579359917,4.29206,2329.9,2329.3,4.73093207]
[1726579360952,6.5906975,2330.0,2329.5,4.29275]
[1726579360953,2.2988575,2330.0,2329.5,4.29275]
[1726579361131,2.2988575,2330.0,2329.5,5.20369184]
[1726579361316,2.2988575,2330.0,2329.5,5.28953448]
[1726579361650,2.2988575,2330.0,2329.5,5.28946448]
[1726579362362,2.2988575,2330.0,2329.5,9.58213448]
[1726579362773,2.2988575,2330.0,2329.6,4.29255]
[1726579362977,2.2988575,2330.0,2329.6,5.58468635]
[1726579364047,2.2988575,2330.0,2329.6,1.29213635]
[1726579364864,2.2988575,2330.0,2329.6,1.37797906]
[1726579366850,2.2988575,2330.0,2329.6,5.67041906]
[1726579368265,0.0389575,2330.0,2329.9,4.29202]
[1726579368471,0.0389575,2330.0,2329.9,8.58404]
[1726579368680,0.0389575,2330.0,2329.9,4.29202]
[1726579369058,0.0389575,2330.0,2329.9,0.08582725]
[1726579369787,0.0389575,2330.0,2329.9,4.37784725]
[1726579369941,0.0389575,2330.0,2329.9,5.24484598]
[1726579372188,0.0389575,2330.0,2329.9,5.15901873]
[1726579372386,0.0389575,2330.0,2329.9,9.53686605]
[1726579374346,0.0389575,2330.0,2329.9,5.15901873]
[1726579374551,0.0389575,2330.0,2329.9,4.29202]
[1726579374888,0.0389575,2330.0,2329.9,8.58404]
[1726579375685,0.0389575,2330.0,2329.9,8.66986443]
[1726579376973,0.0389575,2330.0,2329.7,4.29236]
[1726579377173,0.0389575,2330.0,2329.9,4.29202]
[1726579377502,0.0389575,2330.0,2329.9,5.021222]
[1726579377672,0.0389575,2330.0,2329.9,9.39906908]
[1726579377875,0.0389575,2330.0,2329.9,12.39906908]
[1726579378077,2.3548,2330.5,2330.2,4.29138]
[1726579378275,2.3548,2330.5,2330.3,0.858299]
[1726579378479,2.3548,2330.5,2330.2,8.5827]
[1726579378675,2.3548,2330.5,2330.2,4.29132]
[1726579379105,2.3548,2330.5,2330.2,4.37713663]
[1726579379271,2.3548,2330.5,2330.2,5.57793019]
[1726579379604,2.3760575,2330.7,2330.2,5.57793019]
[1726579380118,6.6666175,2330.7,2330.2,9.86925019]
[1726579380267,6.6666175,2330.7,2330.2,1.28661019]
[1726579380468,6.6666175,2330.7,2330.1,4.29157]
[1726579380469,4.29077,2330.6,2330.1,4.29157]
[1726579381569,6.6666175,2330.7,2330.2,4.37728941]
[1726579381769,10.9573075,2330.7,2330.2,4.29147]
[1726579382274,6.6666175,2330.7,2330.2,8.66868942]
[1726579382470,2.3760575,2330.7,2330.3,5.15813894]
[1726579383591,6.6666075,2330.7,2330.3,0.86686894]
[1726579383772,2.3760575,2330.7,2330.3,0.86686894]
[1726579383988,2.3760575,2330.7,2330.3,0.95268838]
[1726579384319,2.3760575,2330.7,2330.4,0.95354284]
[1726579384472,2.3760575,2330.7,2330.3,8.66815944]
[1726579384677,0.0389575,2330.7,2330.4,4.29103]
[1726579384918,0.0389575,2330.7,2330.5,0.0858098]
[1726579385238,0.0389575,2330.7,2330.5,4.3766498]
[1726579385431,0.0389575,2330.7,2330.6,0.86676798]
[1726579385583,6.7813275,2330.7,2330.4,3.0]
[1726579385784,6.7813275,2330.7,2330.3,3.0]
[1726579385991,6.7814075,2330.7,2330.3,3.0]
[1726579386188,0.0389575,2330.7,2330.3,3.0]
[1726579386423,0.0389575,2330.7,2330.4,4.29103]
[1726579386586,0.0389575,2330.7,2330.5,1.158223]
[1726579386907,0.0389575,2330.7,2330.5,5.449133]